fUSD/lending_fUSD_20250410
["ID","MTS","AMOUNT","RATE_DAILY","PERIOD"]
[357679374,1744315840773,-250.0,0.00019358,2]
[357679375,1744315840783,-224.8,0.00019406,2]
[357679376,1744315840792,-408.0,0.00019479,2]
[357679377,1744315840801,-400.0,0.000195,7]
[357679378,1744315840811,-505.0,0.00019562,2]
[357679379,1744315840820,-900.0,0.000196,7]
[357679380,1744315840829,-500.0,0.00019699,2]
[357679381,1744315840839,-1400.0,0.000197,7]
[357679382,1744315840848,-200.0,0.00019728,2]
[357679383,1744315840857,-1900.0,0.000198,7]
[357679384,1744315840867,-500.0,0.0001984,2]
[357679385,1744315840877,-500.0,0.0001984,2]
[357679386,1744315840886,-200.0,0.0001984,2]
[357679387,1744315840895,-198.98778996,0.000199,2]
[357679388,1744315840905,-2400.0,0.000199,7]
[357679389,1744315840914,-242.3390109,0.000199,2]
[357679390,1744315840924,-6678.9078,0.000199,2]
[357679391,1744315840934,-566.14554502,0.000199,2]
[357679392,1744315840943,-213.40592161,0.000199,2]
[357679393,1744315840952,-1580.4624,0.000199,2]
[357679394,1744315840963,-1000.0,0.0001992,2]
[357679395,1744315840972,-500.0,0.00019973,2]
[357679396,1744315840981,-500.0,0.00019973,2]
[357679397,1744315840990,-28282.1683254,0.00019986,2]
[357679398,1744315840998,-2084.0,0.0002,2]
[357679399,1744315841007,-1159707.81827413,0.0002,2]
[357679400,1744315841015,-250.0,0.0002,2]
[357679401,1744315841023,-250.0,0.0002,2]
[357679402,1744315841032,-250.0,0.0002,2]
[357679403,1744315841041,-250.0,0.0002,2]
[357679404,1744315841051,-250.0,0.0002,2]
[357679405,1744315841060,-250.0,0.0002,2]
[357679406,1744315841069,-250.0,0.0002,2]
[357679407,1744315841078,-250.0,0.0002,2]
[357679408,1744315841088,-250.0,0.0002,2]
[357679409,1744315841097,-250.0,0.0002,2]
[357679410,1744315841106,-250.0,0.0002,2]
[357679411,1744315841115,-250.0,0.0002,2]
[357679412,1744315841124,-250.0,0.0002,2]
[357679413,1744315841133,-250.0,0.0002,2]
[357679414,1744315841156,-358.9,0.0002,2]
[357679415,1744315841171,-500.0,0.0002,2]
[357679416,1744315841191,-89981.80695689,0.0002,2]
[357679417,1744315841211,-981123.69011706,0.0002,2]
[357679418,1744315841229,-488.99563955,0.0002,2]
[357679419,1744315841253,-55110.66005355,0.0002,2]
[357679427,1744315842640,-8226.18106371,0.0002,2]
[357679460,1744315843181,-3988.35,0.0002,2]
[357679474,1744315845802,-9373.13384001,0.0002,2]
[357679505,1744316173380,152767.50105114,0.00043701,30]
[357679506,1744316737447,632.20089401,9e-05,2]
[357679507,1744316769149,500.0,0.000437,30]
[357679509,1744316846156,-300.0,0.00018999,2]
[357679510,1744316846183,-250.0,0.00019,2]
[357679511,1744316846205,-10308.88427973,0.00019,2]
[357679512,1744316848734,158.68597473,0.0001,2]
[357679514,1744316919109,1114.84147614,0.000149,2]
[357679516,1744316930118,204.76715622,0.00043701,31]
[357679522,1744316949138,-1621.68,0.00017499,2]
[357679523,1744316949158,-238.08086642,0.00018,2]
[357679524,1744316954165,-442.22533621,0.00018,2]
[357679538,1744317031902,-176.60122968,0.00019,2]
[357679539,1744317031912,-250.0,0.00019103,2]
[357679540,1744317031921,-900.0,0.000194,7]
[357679541,1744317031930,-23.5143715,0.00019413,2]
[357679542,1744317031957,-143.8856285,0.00019413,2]
[357679543,1744317031966,-166.26,0.00019417,2]
[357679544,1744317031975,-200.0,0.00019417,2]
[357679545,1744317031984,-1800.0,0.000195,7]
[357679546,1744317031993,-250.0,0.00019536,2]
[357679547,1744317032002,-2800.0,0.000196,7]
[357679548,1744317032011,-300.0,0.00019699,2]
[357679549,1744317032020,-1229.0,0.000197,2]
[357679550,1744317032029,-1134.0,0.000197,2]
[357679551,1744317032038,-3700.0,0.000197,7]
[357679552,1744317032047,-1621.68,0.00019763,2]
[357679553,1744317032056,-224.3331,0.000198,2]
[357679554,1744317032065,-315.5523,0.000198,2]
[357679555,1744317032074,-392.45,0.000198,2]
[357679556,1744317032084,-1580.4624,0.000198,2]
[357679557,1744317032093,-2824.66144336,0.000198,7]
[357679558,1744317032104,-1875.33855664,0.000198,7]
[357679560,1744317032114,-3721.0031,0.000198,2]
[357679561,1744317032123,-377.0,0.00019836,2]
[357679563,1744317032132,-1000.0,0.00019836,2]
[357679565,1744317032141,-1802.97,0.00019837,2]
[357679567,1744317032151,-200.0,0.00019837,7]
[357679569,1744317032160,-3386.50017553,0.00019837,2]
[357679572,1744317032180,-362.5,0.00019837,2]
[357679575,1744317032195,-510.674481,0.00019837,2]
[357679577,1744317032207,-1920.96971216,0.00019837,2]
[357679580,1744317032218,-17719.35563131,0.00019837,2]
[357679584,1744317032227,-500.0,0.0001984,2]
[357679587,1744317032237,-500.0,0.0001984,2]
[357679590,1744317032246,-200.0,0.0001984,2]
[357679593,1744317032255,-1778.831,0.00019899,2]
[357679596,1744317032264,-1000.0,0.000199,2]
[357679599,1744317032273,-2500.0,0.000199,2]
[357679602,1744317032283,-1000.0,0.000199,2]
[357679604,1744317032292,-2639.22747724,0.000199,2]
[357679608,1744317032320,-4985.21163903,0.000199,2]
[357679861,1744317037822,-1601.13004385,0.000199,2]
[357679863,1744317037914,-2123.8718616,0.000199,2]
[357679864,1744317037925,-2711.25778425,0.000199,2]
[357679865,1744317038138,-17616.7082442,0.000199,2]
[357679875,1744317040141,-459.91921323,0.000199,2]
[357679876,1744317040212,-3945.6751366,0.000199,2]
[357679877,1744317040222,-198.98778996,0.000199,2]
[357679878,1744317040231,-71987.24520165,0.000199,2]
[357679879,1744317040241,-334.9846,0.000199,2]
[357679880,1744317040250,-242.3390109,0.000199,2]
[357679881,1744317040259,-254.00724409,0.000199,3]
[357679882,1744317040268,-500.0,0.000199,2]
[357679883,1744317040277,-900.0,0.000199,7]
[357679884,1744317040286,-188.76769289,0.000199,3]
[357679885,1744317040295,-213.40592161,0.000199,2]
[357679886,1744317040304,-500.0,0.00019973,2]
[357679887,1744317040314,-500.0,0.00019973,2]
[357679888,1744317040323,-500.0,0.00019973,2]
[357679889,1744317040332,-22504.6865179,0.00019986,2]
[357679890,1744317040341,-5916.0632774,0.00019986,2]
[357679891,1744317040351,-268.10162168,0.00019999,5]
[357679892,1744317040360,-1985.0,0.0002,2]
[357679893,1744317040369,-2180822.26812629,0.0002,2]
[357679942,1744317042911,-2935.99079931,0.0002,2]
[357679943,1744317042921,-6281.9006532,0.0002,2]
[357679944,1744317042931,-2230933.61490715,0.0002,2]
[357679945,1744317042968,-23868.9,0.0002,2]
[357679946,1744317043027,-3991.25,0.0002,2]
[357679962,1744317043230,-1223.90849236,0.0002,2]
[357680016,1744317046086,-1542.40289879,0.0002,2]
[357680047,1744317332526,150.0,0.00043701,30]
[357680049,1744317430704,-250.0,0.00019417,2]
[357680050,1744317430725,-200.0,0.00019417,2]
[357680051,1744317430747,-1000.0,0.00019417,2]
[357680052,1744317430772,-250.0,0.00019608,2]
[357680053,1744317430794,-278.0,0.00019799,2]
[357680054,1744317430824,-6678.9078,0.000198,2]
[357680055,1744317430850,-151.14524937,0.000198,2]
[357680056,1744317430873,-500.0,0.0001984,2]
[357680057,1744317430895,-200.0,0.0001984,2]
[357680058,1744317430918,-500.0,0.00019886,2]
[357680059,1744317430940,-1000.0,0.00019886,2]
[357680060,1744317430962,-1000.0,0.00019886,2]
[357680061,1744317430984,-294.87421659,0.0001989,2]
[357680062,1744317431006,-36083.0014,0.000199,2]
[357680063,1744317431028,-218.10510981,0.000199,2]
[357680064,1744317431049,-334.9846,0.000199,2]
[357680065,1744317431071,-170.16369834,0.000199,2]
[357680066,1744317431093,-166.77332745,0.000199,2]
[357680067,1744317431114,-2500.0,0.000199,2]
[357680068,1744317431136,-566.14554502,0.000199,2]
[357680069,1744317431156,-200.43777049,0.000199,3]
[357680070,1744317431177,-218.10510977,0.00019916,2]
[357680071,1744317431201,-218.10510977,0.00019932,2]
[357680072,1744317431223,-218.10510977,0.00019948,2]
[357680073,1744317431244,-218.10510977,0.00019964,2]
[357680074,1744317431265,-500.0,0.00019973,2]
[357680075,1744317431286,-500.0,0.00019973,2]
[357680076,1744317431308,-218.10510977,0.00019981,2]
[357680077,1744317431329,-218.10510977,0.00019997,2]
[357680078,1744317431351,-268.10162168,0.00019999,5]
[357680079,1744317431372,-1882.0,0.0002,2]
[357680080,1744317431395,-637482.72900263,0.0002,2]
[357680081,1744317492582,-223.0,0.000199,2]
[357680082,1744317492605,-1000.0,0.000199,2]
[357680083,1744317492627,-29075.9861,0.000199,2]
[357680084,1744317492650,-500.0,0.000199,2]
[357680085,1744317492671,-1891.0,0.0002,2]
[357680086,1744317492695,-335174.0139,0.0002,2]
[357680088,1744317554655,-324.55,0.00019417,2]
[357680089,1744317554678,-1423.065,0.000196,2]
[357680090,1744317554699,-183.82107753,0.000199,2]
[357680091,1744317554720,-200.43777048,0.000199,3]
[357680092,1744317554741,-377.43036334,0.000199,2]
[357680093,1744317554762,-1000.0,0.000199,2]
[357680094,1744317554783,-2500.0,0.000199,2]
[357680095,1744317554806,-213.40592161,0.000199,2]
[357680096,1744317554827,-264.92067383,0.00019973,2]
[357680097,1744317554848,-500.0,0.00019973,2]
[357680098,1744317554870,-2941.0,0.00019973,2]
[357680099,1744317554898,-500.0,0.00019973,2]
[357680100,1744317554921,-500.0,0.00019973,2]
[357680101,1744317554943,-500.0,0.00019973,2]
[357680102,1744317554965,-850.0,0.00019999,2]
[357680103,1744317554989,-1702.0,0.0002,2]
[357680104,1744317555014,-78031.36919321,0.0002,2]
[357680106,1744317711029,-200.0,0.00019417,7]
[357680107,1744317711053,-23900.0,0.00019419,2]
[357680108,1744317711074,-6091.17580511,0.000198,2]
[357680109,1744317711096,-487.97400606,0.000199,2]
[357680110,1744317711118,-170.56096284,0.000199,2]
[357680111,1744317711139,-392.9936,0.000199,2]
[357680112,1744317711160,-160.53921631,0.000199,2]
[357680113,1744317711181,-251.62024224,0.000199,2]
[357680114,1744317711201,-1000.0,0.000199,2]
[357680115,1744317711222,-563.08999325,0.000199,2]
[357680116,1744317711245,-37197.0127,0.000199,2]
[357680117,1744317711265,-1000.0,0.000199,2]
[357680118,1744317711285,-2500.0,0.000199,2]
[357680119,1744317711305,-183.82107752,0.000199,2]
[357680120,1744317711325,-326.33714145,0.00019973,2]
[357680121,1744317711344,-504.05263074,0.00019973,2]
[357680122,1744317711368,-500.0,0.00019973,2]
[357680123,1744317711388,-621.68773512,0.00019973,2]
[357680124,1744317711409,-152.84020876,0.0001999,2]
[357680125,1744317711430,-152.84020876,0.0001999,2]
[357680126,1744317711450,-500.0,0.00019999,2]
[357680127,1744317711471,-208.05835475,0.00019999,2]
[357680128,1744317711492,-1740.0,0.0002,2]
[357680129,1744317711516,-232526.39611709,0.0002,2]
[357680130,1744317726142,500.00374,0.00043679,120]
[357680132,1744317749632,-500.0,0.00019973,2]
[357680133,1744317749653,-200.62761529,0.00019999,5]
[357680134,1744317749673,-300.0,0.00019999,2]
[357680135,1744317749693,-850.0,0.00019999,2]
[357680136,1744317749713,-296.49268158,0.00019999,2]
[357680137,1744317749734,-1463.0,0.0002,2]
[357680138,1744317749756,-718262.87970313,0.0002,2]
[357680139,1744317778813,-250.0,0.00019,2]
[357680140,1744317778839,-1323.0,0.0002,2]
[357680141,1744317778863,-587655.0,0.0002,2]
[357680147,1744318031117,-200.0,0.00019417,2]
[357680148,1744318031138,-300.0,0.000197,7]
[357680149,1744318031160,-500.0,0.0001984,2]
[357680150,1744318031181,-200.0,0.0001984,2]
[357680151,1744318031202,-295.0,0.00019899,2]
[357680152,1744318031224,-1006.83989793,0.000199,2]
[357680155,1744318054160,-1457.153555,0.00019701,2]
[357680156,1744318054184,-600.0,0.000198,7]
[357680157,1744318054207,-6053.33868888,0.000199,2]
[357680158,1744318071060,-30136.83411319,0.000199,2]
[357680159,1744318071081,-1000.0,0.000199,2]
[357680160,1744318071102,-1000.0,0.000199,2]
[357680161,1744318071124,-900.0,0.000199,7]
[357680162,1744318071144,-2500.0,0.000199,2]
[357680163,1744318071165,-467.08228422,0.00019973,2]
[357680164,1744318071184,-12244.44594715,0.0001999,2]
[357680165,1744318071204,-1192.0,0.0002,2]
[357680166,1744318071227,-658528.63765544,0.0002,2]
[357680174,1744318231896,-204.43276917,0.000199,2]
[357680175,1744318231906,-927.34941117,0.000199,2]
[357680176,1744318231918,-1169.91478752,0.000199,2]
[357680177,1744318231927,-587.0324,0.000199,2]
[357680178,1744318231937,-577.77795033,0.00019973,2]
[357680179,1744318231946,-500.0,0.00019973,2]
[357680180,1744318231956,-3871.57,0.0001999,2]
[357680181,1744318231965,-3871.57,0.0001999,2]
[357680182,1744318231974,-152.84020878,0.0001999,2]
[357680183,1744318231983,-962.3588002,0.00019999,2]
[357680184,1744318231992,-300.0,0.00019999,2]
[357680185,1744318232005,-1070.0,0.0002,2]
[357680186,1744318232014,-250.0,0.0002,2]
[357680187,1744318232023,-170300.4585954,0.0002,2]
[357680188,1744318232033,-181742.89613687,0.0002,2]
[357680189,1744318232054,-81779.88885586,0.0002,2]
[357680190,1744318232065,-614.76117349,0.0002,2]
[357680191,1744318232077,-89708.34937086,0.0002,2]
[357680192,1744318232097,-2510.60206527,0.0002,2]
[357680193,1744318232123,-822.43938088,0.0002,2]
[357680194,1744318232191,-597.28428775,0.0002,2]
[357680197,1744318232269,-289.7355186,0.0002,2]
[357680199,1744318232293,-524.9532,0.0002,2]
[357680257,1744318238568,-135.63994768,0.0002,2]
[357680258,1744318238603,-1193.88321395,0.0002,2]
[357680259,1744318238798,-6092.21925902,0.0002,2]
[357680260,1744318238967,-15.26377028,0.0002,2]
[357680261,1744318238979,-7273.31357115,0.0002,2]
[357680263,1744318240256,-2849.65867337,0.0002,2]
[357680264,1744318240377,-113.5777112,0.0002,2]
[357680265,1744318240452,-92.70413707,0.0002,2]
[357680266,1744318240464,-1057041.2794791,0.0002,2]
[357680267,1744318240473,-2000.0,0.0002,4]
[357680269,1744318240483,-151.62,0.0002,2]
[357680270,1744318240494,-151.62,0.0002,2]
[357680272,1744318240504,-151.62,0.0002,2]
[357680274,1744318240513,-151.62,0.0002,2]
[357680276,1744318240522,-151.62,0.0002,2]
[357680278,1744318240531,-151.62,0.0002,2]
[357680280,1744318240541,-4753.3607211,0.0002001,2]
[357680282,1744318240550,-1849.06382762,0.0002001,2]
[357680284,1744318240559,-1628.02,0.00020027,2]
[357680286,1744318240568,-150.99,0.00020145,2]
[357680288,1744318240578,-151.62,0.00020255,2]
[357680290,1744318240587,-141319.86542906,0.00020265,2]
[357680292,1744318240597,-204.43276914,0.00020783,2]
[357680294,1744318240606,-2097.26419868,0.00020783,2]
[357680296,1744318240615,-1030.10575766,0.00021,2]
[357680298,1744318240624,-300.0,0.00021,2]
[357680300,1744318240634,-2000.0,0.00021,4]
[357680301,1744318240643,-166.26,0.00021035,2]
[357680303,1744318240652,-250.0,0.00021076,2]
[357680305,1744318240661,-2000.0,0.00021126,2]
[357680307,1744318240670,-1067.0,0.00021604,2]
[357680309,1744318240679,-204.43276914,0.00021666,2]
[357680311,1744318240688,-2097.26419868,0.00021666,2]
[357680313,1744318240697,-170.56096282,0.00021681,2]
[357680315,1744318240706,-263.45919088,0.000217,2]
[357680317,1744318240715,-169.54,0.00021741,2]
[357680319,1744318240724,-165.08,0.00021762,2]
[357680321,1744318240733,-420.0,0.00021777,2]
[357680323,1744318240742,-1000.0,0.00021844,2]
[357680325,1744318240751,-250.0,0.0002189,2]
[357680327,1744318240760,-283.21,0.00021917,2]
[357680328,1744318240769,-250.0,0.00022,2]
[357680330,1744318240778,-247.19026135,0.00022,2]
[357680332,1744318240787,-500.0,0.00022,2]
[357680334,1744318240796,-302.24,0.00022,2]
[357680336,1744318240805,-304.03,0.00022,2]
[357680338,1744318240815,-301.92,0.00022,2]
[357680340,1744318240824,-2000.0,0.00022,4]
[357680342,1744318240834,-1628.02,0.00022291,2]
[357680344,1744318240843,-204.43276914,0.00022548,2]
[357680346,1744318240852,-2097.26419868,0.00022548,2]
[357680348,1744318240861,-166.26,0.00022653,2]
[357680350,1744318240870,-1067.0,0.00022741,2]
[357680352,1744318240879,-169.54,0.00022937,2]
[357680354,1744318240889,-350.0,0.00023,2]
[357680356,1744318240898,-200.0,0.00023,2]
[357680358,1744318240907,-2000.0,0.00023,4]
[357680360,1744318240917,-250.0,0.00023153,2]
[357680361,1744318240926,-283.21,0.00023287,2]
[357680363,1744318240935,-204.43276914,0.00023431,2]
[357680365,1744318240944,-2097.26419868,0.00023431,2]
[357680367,1744318240954,-170.56096282,0.00023461,2]
[357680369,1744318240964,-587.0,0.00023712,2]
[357680371,1744318240974,-229.71,0.00023836,2]
[357680373,1744318240983,-1300.0,0.000239,8]
[357680375,1744318240992,-1067.0,0.00023938,2]
[357680377,1744318241004,-151.62,0.0002399,2]
[357680379,1744318241015,-2000.0,0.00024,4]
[357680381,1744318241024,-12138.1672326,0.00024,2]
[357680383,1744318241033,-28404.30979508,0.00024,2]
[357680385,1744318241043,-169.54,0.00024133,2]
[357680387,1744318241054,-166.26,0.00024271,2]
[357680389,1744318241063,-1000.0,0.00024271,2]
[357680391,1744318241072,-204.43276914,0.00024314,2]
[357680393,1744318241083,-2097.26419868,0.00024314,2]
[357680395,1744318241093,-348.49,0.00024539,2]
[357680397,1744318241102,-348.49,0.00024539,2]
[357680399,1744318241111,-348.49,0.00024539,2]
[357680401,1744318241120,-348.49,0.00024539,2]
[357680403,1744318241129,-348.49,0.00024539,2]
[357680405,1744318241139,-1628.02,0.00024555,2]
[357680407,1744318241149,-575.0,0.00024621,2]
[357680409,1744318241158,-1286.0,0.00024621,2]
[357680411,1744318241167,-2045.0,0.00024621,2]
[357680413,1744318241176,-1326.0,0.00024621,2]
[357680415,1744318241186,-861.283,0.00024621,2]
[357680416,1744318241195,-1278.0,0.00024621,2]
[357680418,1744318241204,-1027.924,0.00024621,2]
[357680420,1744318241214,-1437.0,0.00024621,2]
[357680422,1744318241224,-4144.0,0.00024621,2]
[357680424,1744318241233,-550.709,0.00024621,2]
[357680426,1744318241244,-247.586,0.00024621,2]
[357680428,1744318241253,-3960.0,0.00024621,2]
[357680430,1744318241262,-150.0,0.00024621,2]
[357680432,1744318241271,-852.0,0.00024621,2]
[357680434,1744318241280,-1121.0,0.00024621,2]
[357680436,1744318241290,-283.21,0.00024657,2]
[357680438,1744318241299,-1000.0,0.00024658,2]
[357680440,1744318241309,-151.62,0.0002479,2]
[357680442,1744318241319,-151.62,0.0002479,2]
[357680444,1744318241328,-500.0,0.000248,2]
[357680446,1744318241337,-500.9227074,0.000248,2]
[357680448,1744318241346,-500.0,0.000248,2]
[357680450,1744318241355,-371558.606471,0.000248,2]
[357680452,1744318241364,-250.99956003,0.0002485,2]
[357680454,1744318241373,-506.18732729,0.0002485,2]
[357680456,1744318241383,-500.0,0.0002485,2]
[357680457,1744318241392,-500.0,0.0002485,2]
[357680459,1744318241401,-497.99951181,0.0002485,2]
[357680461,1744318241411,-513.24563818,0.0002485,2]
[357680463,1744318241420,-500.0,0.0002485,2]
[357680464,1744318241429,-500.0,0.0002485,2]
[357680466,1744318241438,-152.59505167,0.0002485,2]
[357680468,1744318241446,-500.0,0.0002485,2]
[357680469,1744318241455,-503.25397582,0.0002485,2]
[357680471,1744318241465,-500.0,0.0002485,2]
[357680473,1744318241474,-606.26686559,0.0002485,2]
[357680475,1744318241483,-345.4302494,0.0002485,2]
[357680477,1744318241493,-502.993354,0.0002485,2]
[357680479,1744318241502,-154.19532021,0.0002485,2]
[357680481,1744318241511,-500.71468123,0.0002485,2]
[357680483,1744318241520,-503.09672677,0.0002485,2]
[357680485,1744318241529,-500.0,0.0002485,2]
[357680487,1744318241538,-159.20797218,0.0002485,2]
[357680489,1744318241547,-151.62,0.0002489,2]
[357680490,1744318241556,-151.62,0.0002489,2]
[357680492,1744318241565,-151.62,0.0002489,2]
[357680494,1744318241574,-162.19427415,0.000249,2]
[357680496,1744318241584,-448679.875708,0.000249,2]
[357680498,1744318241593,-4880.02863779,0.00024989,2]
[357680500,1744318241602,-200.0,0.00025,2]
[357680502,1744318241612,-2308.78350445,0.00025,2]
[357680504,1744318241621,-199.88218475,0.00025,2]
[357680506,1744318241630,-831.86083544,0.00025,2]
[357680508,1744318241639,-400.0,0.00025,2]
[357680510,1744318241648,-10000.0,0.00025,2]
[357680512,1744318241657,-2000.0,0.00025,4]
[357680514,1744318241666,-204.43276914,0.00025197,2]
[357680516,1744318241675,-2097.26419868,0.00025197,2]
[357680518,1744318241684,-1067.0,0.00025198,2]
[357680519,1744318241693,-170.56096282,0.00025242,2]
[357680521,1744318241702,-193.0,0.000253,10]
[357680523,1744318241712,-169.54,0.0002533,2]
[357680525,1744318241721,-203.14,0.00025362,2]
[357680527,1744318241730,-1000.0,0.00025452,2]
[357680529,1744318241739,-213.0,0.0002582,2]
[357680531,1744318241749,-166.26,0.00025889,2]
[357680533,1744318241758,-2000.0,0.00026,4]
[357680534,1744318241767,-283.21,0.00026027,2]
[357680535,1744318241776,-204.43276914,0.00026079,2]
[357680536,1744318241785,-2097.26419868,0.00026079,2]
[357680537,1744318241794,-1067.0,0.00026524,2]
[357680538,1744318241803,-2415.3441771,0.00026574,4]
[357680539,1744318241812,-1000.0,0.00026698,2]
[357680540,1744318241822,-1628.02,0.00026819,2]
[357680541,1744318241831,-213.57,0.00026849,2]
[357680542,1744318241840,-358.94,0.00026849,2]
[357680543,1744318241849,-413.43,0.00026849,2]
[357680544,1744318241858,-1600.0,0.000269,9]
[357680545,1744318241868,-204.43276914,0.00026962,2]
[357680546,1744318241877,-2097.26419868,0.00026962,2]
[357680547,1744318241886,-2000.0,0.00027,4]
[357680548,1744318241896,-450.0,0.00027,2]
[357680549,1744318241905,-170.56096282,0.00027023,2]
[357680550,1744318241915,-200.0,0.000271,2]
[357680551,1744318241923,-167.651937,0.00027152,2]
[357680552,1744318241933,-324.55,0.00027184,2]
[357680553,1744318241942,-150.0,0.00027196,2]
[357680554,1744318241951,-150.0,0.00027196,2]
[357680555,1744318241961,-156.348,0.00027196,2]
[357680557,1744318241970,-150.486,0.00027196,2]
[357680558,1744318241979,-167.74682816,0.00027297,2]
[357680560,1744318241988,-622.26567219,0.00027373,2]
[357680562,1744318241997,-500.0,0.00027373,2]
[357680564,1744318242010,-500.0,0.00027373,2]
[357680566,1744318242019,-501.33602778,0.00027373,2]
[357680568,1744318242028,-500.0,0.00027373,2]
[357680570,1744318242037,-151.62,0.00027387,2]
[357680572,1744318242048,-2310.728987,0.00027397,2]
[357680574,1744318242058,-151.013746,0.00027397,2]
[357680575,1744318242067,-156.736452,0.00027397,2]
[357680577,1744318242077,-163.119258,0.00027397,2]
[357680579,1744318242089,-4139.049065,0.00027397,2]
[357680581,1744318242098,-3111.065441,0.00027397,2]
[357680583,1744318242107,-500.0,0.00027397,2]
[357680585,1744318242116,-500.0,0.00027397,2]
[357680587,1744318242127,-545.83344829,0.00027397,2]
[357680589,1744318242136,-500.0,0.00027397,2]
[357680591,1744318242145,-500.0,0.00027397,2]
[357680593,1744318242155,-500.74784496,0.00027397,2]
[357680595,1744318242164,-500.0,0.00027397,2]
[357680597,1744318242174,-506.50599645,0.00027397,2]
[357680599,1744318242183,-500.0,0.00027397,2]
[357680601,1744318242192,-506.55870461,0.00027397,2]
[357680603,1744318242201,-467.60153072,0.00027397,2]
[357680605,1744318242211,-163.751289,0.00027397,7]
[357680606,1744318242220,-500.0,0.00027397,2]
[357680608,1744318242229,-500.0,0.00027397,2]
[357680610,1744318242238,-500.0,0.00027397,2]
[357680612,1744318242247,-500.0,0.00027397,2]
[357680614,1744318242256,-312.02872101,0.00027397,2]
[357680616,1744318242265,-500.0,0.00027397,2]
[357680620,1744318242408,-500.0,0.00027397,2]
[357680621,1744318242434,-500.7204557,0.00027397,2]
[357680622,1744318242444,-500.0,0.00027397,2]
[357680623,1744318242453,-354.34919994,0.00027397,2]
[357680624,1744318242463,-500.0,0.00027397,2]
[357680626,1744318242472,-500.0,0.00027397,2]
[357680628,1744318242483,-367.3213854,0.00027397,2]
[357680651,1744318242720,-59.06078872,0.00027397,2]
[357680661,1744318243270,-962.0,0.0002,2]
[357680662,1744318244653,1000.0,0.000199,2]
[357680666,1744318246119,-116.5236563,0.00024621,2]
[357680667,1744318246198,-33.4763437,0.00024621,2]
[357680668,1744318246207,-150.18,0.00024621,2]
[357680669,1744318246217,-73.61782588,0.00027397,2]
[357680670,1744318246226,-500.0,0.00027397,2]
[357680671,1744318246235,-500.0,0.00027397,2]
[357680674,1744318246378,-500.0,0.00027397,2]
[357680675,1744318246413,-500.0,0.00027397,2]
[357680676,1744318246423,-500.0,0.00027397,2]
[357680677,1744318246432,-513.16236183,0.00027397,2]
[357680678,1744318246443,-500.0,0.00027397,2]
[357680679,1744318246452,-500.0,0.00027397,2]
[357680680,1744318246462,-507.96570451,0.00027397,2]
[357680681,1744318246472,-500.0,0.00027397,2]
[357680682,1744318246481,-500.0,0.00027397,2]
[357680683,1744318246490,-500.0,0.00027397,2]
[357680684,1744318246499,-515.31240038,0.00027397,2]
[357680685,1744318246509,-429.17401806,0.00027397,2]
[357680686,1744318246518,-500.0,0.00027397,2]
[357680687,1744318246527,-500.0,0.00027397,2]
[357680688,1744318246537,-500.0,0.00027397,2]
[357680689,1744318246546,-500.0,0.00027397,2]
[357680690,1744318246555,-837.32,0.00027397,2]
[357680691,1744318246564,-500.0,0.00027397,2]
[357680692,1744318246573,-541.64557409,0.00027397,2]